bitfinex/quotes_BTCUSD_20250727
["timestamp","ask_amount","ask_price","bid_price","bid_amount"]
[1753629164052,0.02581416,118430.0,118420.0,0.81680354]
[1753629164279,0.02581409,118430.0,118420.0,0.81680354]
[1753629164499,0.19469021,118430.0,118420.0,0.80835903]
[1753629164715,0.19681021,118430.0,118420.0,0.80835903]
[1753629165118,0.19681021,118430.0,118420.0,0.81680354]
[1753629165328,0.02793409,118430.0,118420.0,0.82524798]
[1753629165525,0.02793409,118430.0,118420.0,0.83369235]
[1753629165731,0.02793409,118430.0,118420.0,0.82524798]
[1753629166035,0.02793409,118430.0,118420.0,0.81680354]
[1753629166940,0.19681021,118430.0,118420.0,0.80835903]
[1753629167153,0.19993021,118430.0,118420.0,0.80347903]
[1753629167770,0.19681021,118430.0,118420.0,0.80347903]
[1753629168203,0.01949036,118430.0,118420.0,0.8119234]
[1753629168456,0.01949036,118430.0,118420.0,0.8139834]
[1753629168684,0.02793402,118430.0,118420.0,0.8171034]
[1753629168980,0.01949036,118430.0,118420.0,0.8255477]
[1753629169241,0.14997036,118430.0,118420.0,0.8171034]
[1753629169447,0.15841402,118430.0,118420.0,0.82554791]
[1753629169914,0.14997036,118430.0,118420.0,0.82554791]
[1753629170138,0.14997036,118430.0,118420.0,0.83399221]
[1753629170657,0.14997036,118430.0,118420.0,0.82554791]
[1753629170893,0.15841409,118430.0,118420.0,0.82554798]
[1753629172368,0.14997036,118430.0,118420.0,0.82554798]
[1753629172585,0.14997036,118430.0,118420.0,0.83399228]
[1753629173390,0.14785036,118430.0,118420.0,0.83399228]
[1753629173589,0.14785036,118430.0,118420.0,0.82554798]
[1753629173712,0.14785036,118430.0,118420.0,0.83399235]
[1753629173949,0.15629402,118430.0,118420.0,0.83399235]
[1753629174165,0.15629402,118430.0,118420.0,0.82554798]
[1753629174475,0.14785036,118430.0,118420.0,0.83399235]
[1753629174665,0.15629352,118430.0,118420.0,0.84243665]
[1753629175023,0.16473718,118430.0,118420.0,0.83399235]
[1753629175500,0.15629352,118430.0,118420.0,0.83399235]
[1753629175921,0.16473718,118430.0,118420.0,0.83399235]
[1753629177359,0.16473718,118430.0,118420.0,0.82554798]
[1753629177622,0.16473718,118430.0,118420.0,0.83399235]
[1753629177999,0.16473718,118430.0,118420.0,0.82554798]
[1753629178261,0.16473718,118430.0,118420.0,0.83399235]
[1753629178523,0.17318098,118430.0,118420.0,0.82554798]
[1753629178782,0.16473718,118430.0,118420.0,0.82554798]
[1753629179041,0.16473718,118430.0,118420.0,0.8667523]
[1753629179367,0.16465718,118430.0,118420.0,0.8667523]
[1753629179777,0.3335333,118430.0,118420.0,0.8667523]
[1753629180252,0.2031333,118430.0,118420.0,0.85830786]
[1753629180468,0.19469014,118430.0,118420.0,0.84986335]
[1753629180908,0.19469014,118430.0,118420.0,0.85830786]
[1753629181134,0.19469014,118430.0,118420.0,0.8667523]
[1753629181553,0.03425782,118430.0,118420.0,0.8667523]
[1753629181773,0.02581402,118430.0,118420.0,0.88364097]
[1753629181995,0.01737036,118430.0,118420.0,0.88364097]
[1753629182219,0.02581402,118430.0,118420.0,0.88364097]
[1753629182434,0.02581402,118430.0,118420.0,0.87519667]
[1753629182656,0.02581402,118430.0,118420.0,0.8836409]
[1753629182855,0.01737036,118430.0,118420.0,0.8836409]
[1753629183278,0.02581402,118430.0,118420.0,0.88364097]
[1753629183493,0.01737036,118430.0,118420.0,0.87519667]
[1753629183705,0.02581402,118430.0,118420.0,0.88364097]
[1753629183910,0.02581402,118430.0,118420.0,0.8920852]
[1753629183911,0.01736993,118430.0,118420.0,0.8920852]
[1753629184131,0.02581352,118430.0,118420.0,0.88364097]
[1753629184347,0.02581345,118430.0,118420.0,0.88364069]
[1753629184549,0.02581345,118430.0,118420.0,0.88364062]
[1753629184773,0.02581345,118430.0,118420.0,0.87519646]
[1753629184989,0.02581345,118430.0,118420.0,0.88364069]
[1753629186412,0.02581345,118430.0,118420.0,0.87519646]
[1753629186610,0.02581345,118430.0,118420.0,0.88364069]
[1753629187062,0.03425711,118430.0,118420.0,0.87519646]
[1753629187281,0.03425711,118430.0,118420.0,0.86675216]
[1753629187493,0.04270084,118430.0,118420.0,0.85830779]
[1753629187924,0.02581345,118430.0,118420.0,0.87519646]
[1753629188200,0.02581345,118430.0,118420.0,0.88364069]
[1753629188435,0.01736993,118430.0,118420.0,0.88364041]
[1753629188886,0.02581345,118430.0,118420.0,0.87519625]
[1753629189104,0.01736993,118430.0,118420.0,0.87519625]
[1753629189323,0.02581352,118430.0,118420.0,0.87519625]
[1753629189545,0.01736993,118430.0,118420.0,0.87519625]
[1753629189770,0.01736993,118430.0,118420.0,0.88364041]
[1753629190196,0.01736993,118430.0,118420.0,0.8920845]
[1753629190707,0.0089267,118430.0,118420.0,0.89208415]
[1753629190882,0.0089267,118430.0,118420.0,0.88364013]
[1753629191108,0.01737014,118430.0,118420.0,0.88364013]
[1753629191318,0.01737014,118430.0,118420.0,0.87519604]
[1753629191535,0.01737014,118430.0,118420.0,0.86675188]
[1753629191995,0.02581373,118430.0,118420.0,0.86675216]
[1753629192232,0.03425739,118430.0,118420.0,0.86675223]
[1753629192694,0.03425746,118430.0,118420.0,0.86675223]
[1753629193187,0.03425746,118430.0,118420.0,0.8667523]
[1753629193436,0.03425746,118430.0,118420.0,0.85830786]
[1753629193949,0.20313358,118430.0,118420.0,0.48213093]
[1753629194191,0.20313358,118430.0,118420.0,0.8667523]
[1753629194427,0.03425746,118430.0,118420.0,0.8667523]
[1753629194696,0.03425746,118430.0,118420.0,0.87519667]
[1753629194901,0.03425746,118430.0,118420.0,0.8667523]
[1753629195566,0.02581373,118430.0,118420.0,0.8751966]
[1753629196044,0.02581373,118430.0,118420.0,0.8667523]
[1753629196242,0.03425739,118430.0,118420.0,0.49057544]
[1753629196491,0.04270112,118430.0,118420.0,0.8667523]
[1753629197133,0.20313394,118430.0,118420.0,0.48213093]
[1753629197346,0.03425782,118430.0,118420.0,0.86675216]
[1753629197808,0.03425782,118430.0,118420.0,0.85830779]
[1753629198029,0.03425782,118430.0,118420.0,0.48213093]
[1753629198239,0.20313394,118430.0,118420.0,0.84986335]
[1753629198475,0.03425782,118430.0,118420.0,0.8667523]
[1753629199179,0.03425782,118430.0,118420.0,0.49901988]
[1753629199391,0.03425782,118430.0,118420.0,0.8667523]
[1753629199616,0.02581416,118430.0,118420.0,0.87519667]
[1753629199837,0.01737043,118430.0,118420.0,0.88364097]
[1753629200065,0.02581366,118430.0,118420.0,0.8920852]
[1753629200424,0.01737007,118430.0,118420.0,0.8920852]
[1753629200768,0.02581366,118430.0,118420.0,0.8920852]
[1753629201210,0.01737007,118430.0,118420.0,0.89208485]
[1753629201420,0.02581359,118430.0,118420.0,0.88364069]
[1753629202097,0.03425718,118430.0,118420.0,0.88364069]
[1753629202775,0.03425718,118430.0,118420.0,0.51590827]
[1753629202983,0.02581359,118430.0,118420.0,0.89208485]
[1753629203421,0.02581359,118430.0,118420.0,0.87519646]
[1753629203672,0.02581359,118430.0,118420.0,0.88364069]
[1753629203882,0.02581359,118430.0,118420.0,0.89208485]
[1753629204183,0.01737007,118430.0,118420.0,0.89208485]
[1753629204405,0.02581359,118430.0,118420.0,0.88364069]
[1753629205842,0.02581359,118430.0,118420.0,0.87519646]
[1753629206050,0.03425718,118430.0,118420.0,0.88364069]
[1753629206267,0.03425725,118430.0,118420.0,0.86675216]
[1753629206485,0.03425725,118430.0,118420.0,0.85830779]
[1753629206926,0.04270105,118430.0,118420.0,0.85830786]
[1753629207133,0.03425725,118430.0,118420.0,0.8667523]
[1753629207551,0.03425725,118430.0,118420.0,0.87519667]
[1753629207772,0.04270105,118430.0,118420.0,0.49057544]
[1753629207988,0.20313394,118430.0,118420.0,0.85830786]
[1753629208203,0.20313394,118430.0,118420.0,0.8667523]
[1753629208750,0.03425775,118430.0,118420.0,0.8667523]
[1753629209104,0.03425775,118430.0,118420.0,0.87519667]
[1753629209320,0.03425775,118430.0,118420.0,0.8667523]
[1753629209536,0.03425775,118430.0,118420.0,0.85830786]
[1753629209748,0.02581402,118430.0,118420.0,0.86675223]
[1753629210205,0.01737036,118430.0,118420.0,0.87519646]
[1753629210413,0.01737036,118430.0,118420.0,0.88364062]
[1753629210617,0.01737036,118430.0,118420.0,0.87519646]
[1753629211104,0.01737036,118430.0,118420.0,0.88364062]
[1753629211872,0.01737036,118430.0,118420.0,0.87519646]
[1753629212494,0.0004834,118430.0,118420.0,0.89208464]
[1753629212759,0.00892656,118430.0,118420.0,0.89208464]
[1753629213603,0.0004834,118430.0,118420.0,0.89208464]
[1753629214612,0.0004834,118430.0,118420.0,1.27726608]
[1753629215536,0.0004834,118430.0,118420.0,1.27626608]
[1753629215740,0.0004834,118430.0,118420.0,1.27826608]
[1753629215867,0.0004834,118430.0,118420.0,1.27926608]
[1753629217282,0.0004834,118430.0,118420.0,0.54280124]
[1753629217487,0.0004834,118430.0,118420.0,1.27826608]
[1753629217729,0.0004834,118430.0,118420.0,1.28026608]
[1753629218346,0.0004834,118430.0,118420.0,1.27826608]
[1753629218748,0.0004834,118430.0,118420.0,1.27926608]
[1753629221781,0.0004834,118430.0,118420.0,1.61926608]
[1753629222864,0.0004834,118430.0,118420.0,1.61626608]
[1753629223078,0.0004834,118430.0,118420.0,1.61826608]
[1753629223745,1e-08,118430.0,118420.0,4.8222185]
[1753629223977,1e-08,118430.0,118420.0,4.05025208]
[1753629224192,1e-08,118430.0,118420.0,3.12854708]
[1753629224416,1e-08,118430.0,118420.0,3.10348208]
[1753629225337,1e-08,118430.0,118420.0,3.10548208]
[1753629225777,1e-08,118430.0,118420.0,3.10748208]
[1753629226223,1e-08,118430.0,118420.0,3.4752145]
[1753629227141,1e-08,118430.0,118420.0,3.10748208]
[1753629227661,1e-08,118430.0,118420.0,2.48041908]
[1753629227916,1e-08,118430.0,118420.0,2.31172008]
[1753629228125,1e-08,118430.0,118420.0,1.98410808]
[1753629229185,1e-08,118430.0,118420.0,1.96518408]
[1753629230110,1e-08,118430.0,118420.0,1.62408608]
[1753629230560,1e-08,118430.0,118420.0,1.74722308]
[1753629231021,1e-08,118430.0,118420.0,1.73243708]
[1753629233290,1e-08,118430.0,118420.0,1.62408608]
[1753629233501,1e-08,118430.0,118420.0,2.13808908]
[1753629234647,1e-08,118430.0,118420.0,1.79995008]
[1753629234882,1e-08,118430.0,118420.0,1.71541948]
[1753629235122,1e-08,118430.0,118420.0,1.70364548]
[1753629236162,1e-08,118430.0,118420.0,1.21283836]
[1753629236439,0.02814001,118430.0,118420.0,0.69569934]
[1753629236707,0.02814001,118430.0,118420.0,0.82565934]
[1753629236968,0.02814001,118430.0,118420.0,0.86722836]
[1753629237164,0.00526001,118430.0,118420.0,0.86722836]
[1753629238840,0.00217001,118430.0,118420.0,0.86722836]
[1753629242525,0.00217001,118430.0,118420.0,0.86929836]
[1753629243394,1e-08,118430.0,118420.0,0.87247836]
[1753629244056,1e-08,118430.0,118420.0,1.19919548]
[1753629244292,1e-08,118430.0,118420.0,1.87812648]
[1753629244833,1e-08,118430.0,118420.0,3.18143148]
[1753629245056,1e-08,118430.0,118420.0,2.98160048]
[1753629245282,1e-08,118430.0,118420.0,2.67443648]
[1753629245506,1e-08,118430.0,118420.0,1.87059848]
[1753629246414,1e-08,118430.0,118420.0,1.84403848]
[1753629246629,1e-08,118430.0,118420.0,1.79333648]
[1753629246842,1e-08,118430.0,118420.0,1.21497836]
[1753629250617,1e-08,118430.0,118420.0,1.26567836]
[1753629251435,1e-08,118430.0,118420.0,1.40311236]
[1753629251661,1e-08,118430.0,118420.0,1.72982948]
[1753629252374,1e-08,118430.0,118420.0,1.59239548]
[1753629252607,1e-08,118430.0,118420.0,2.05542948]
[1753629253272,1e-08,118430.0,118420.0,2.00158548]
[1753629253479,1e-08,118430.0,118420.0,1.70158548]
[1753629253935,1e-08,118430.0,118420.0,1.37486836]
[1753629254155,1e-08,118430.0,118420.0,1.26317836]
[1753629254411,1e-08,118430.0,118420.0,1.58989548]
[1753629254894,1e-08,118430.0,118420.0,1.26317836]
[1753629255105,1e-08,118430.0,118420.0,1.37486836]
[1753629255570,1e-08,118430.0,118420.0,1.26317836]
[1753629256827,1e-08,118430.0,118420.0,1.65486836]
[1753629257059,1e-08,118430.0,118420.0,1.26317836]
[1753629257683,1e-08,118430.0,118420.0,1.36331636]
[1753629258298,1e-08,118430.0,118420.0,1.69003348]
[1753629260321,1e-08,118430.0,118420.0,1.63933348]
[1753629261105,1e-08,118430.0,118420.0,1.79003347]
[1753629261508,0.02597,118470.0,118460.0,0.55373971]
[1753629261709,0.02828498,118470.0,118460.0,0.79543285]
[1753629261916,0.02828498,118470.0,118460.0,0.81288187]
[1753629262768,0.00540498,118470.0,118460.0,0.83700187]
[1753629263194,0.00640498,118470.0,118460.0,0.83700187]
[1753629263402,0.00540498,118470.0,118460.0,0.83700187]
[1753629264424,0.00231498,118470.0,118460.0,0.83700187]
[1753629266496,0.00231498,118470.0,118460.0,0.86294772]
[1753629267751,0.00014498,118470.0,118460.0,0.86803772]
[1753629268926,0.00209498,118470.0,118460.0,0.86803772]
[1753629271973,0.00209498,118470.0,118460.0,0.5413206]
[1753629272187,0.00209498,118470.0,118460.0,0.86803772]
[1753629272438,0.00209498,118470.0,118460.0,0.84209187]
[1753629273107,0.02826498,118470.0,118460.0,0.81284187]
[1753629274193,0.00510498,118470.0,118460.0,0.83784187]
[1753629276311,0.00209498,118470.0,118460.0,0.84000187]
[1753629276540,0.00209498,118470.0,118460.0,0.84293187]
[1753629276770,0.00209498,118470.0,118460.0,0.86782135]
[1753629279846,0.00014498,118470.0,118460.0,0.86782135]
[1753629289451,0.00014498,118470.0,118460.0,0.86882135]
[1753629289858,0.00014498,118470.0,118460.0,0.86982135]
[1753629293406,0.00014498,118470.0,118460.0,0.54310423]
[1753629293602,0.00014498,118470.0,118460.0,0.86982135]
[1753629296839,0.00014498,118470.0,118460.0,1.53653847]
[1753629297053,0.00014498,118470.0,118460.0,1.20982135]
[1753629300192,0.00014498,118470.0,118460.0,1.07837625]
[1753629300408,0.00226498,118470.0,118460.0,1.20978135]
[1753629301071,0.00014498,118470.0,118460.0,1.20978135]
[1753629306713,0.00014498,118470.0,118460.0,1.07994135]
[1753629306946,0.00014498,118470.0,118460.0,1.20978135]
[1753629322753,0.00018498,118470.0,118460.0,1.61775675]
[1753629330103,0.00018498,118470.0,118460.0,0.88306423]
[1753629330366,0.00018498,118470.0,118460.0,1.61775675]
[1753629335944,4e-05,118470.0,118460.0,3.69344075]
[1753629336612,4e-05,118470.0,118460.0,3.69244075]
[1753629336884,4e-05,118470.0,118460.0,3.60962087]
[1753629337109,4e-05,118470.0,118460.0,4.40745523]
[1753629337313,4e-05,118470.0,118460.0,4.38656575]
[1753629337531,4e-05,118470.0,118460.0,4.38456575]
[1753629338017,4e-05,118470.0,118460.0,4.72563475]
[1753629338230,4e-05,118470.0,118460.0,4.67711375]
[1753629338671,4e-05,118470.0,118460.0,4.67911375]
[1753629338888,4e-05,118470.0,118460.0,4.60929075]
[1753629339104,4e-05,118470.0,118460.0,4.69681175]
[1753629339552,4e-05,118470.0,118460.0,4.64773675]
[1753629339811,4e-05,118470.0,118460.0,2.41651875]
[1753629340029,4e-05,118470.0,118460.0,2.12969175]
[1753629340276,4e-05,118470.0,118460.0,1.41433175]
[1753629340519,4e-05,118470.0,118460.0,1.39304075]
[1753629341171,4e-05,118470.0,118460.0,1.41888035]
[1753629341390,4e-05,118470.0,118460.0,1.83352935]
[1753629342471,4e-05,118470.0,118460.0,2.49768035]
[1753629342930,0.00214,118470.0,118460.0,1.08045557]
[1753629343174,0.00214,118470.0,118460.0,0.71063533]
[1753629343175,0.02826,118470.0,118460.0,0.71063533]
[1753629343397,0.02826,118470.0,118460.0,1.13553165]
[1753629343840,0.02826,118470.0,118460.0,1.15298067]
[1753629344298,0.02826,118470.0,118460.0,1.15141557]
[1753629344542,0.02826,118470.0,118460.0,1.02165557]
[1753629344765,0.02826,118470.0,118460.0,1.15141557]
[1753629344987,0.02826,118470.0,118460.0,1.15298067]
[1753629345422,0.02826,118470.0,118460.0,1.15141557]
[1753629345677,0.02826,118470.0,118460.0,1.02165557]
[1753629345904,0.02826,118470.0,118460.0,1.02322067]
[1753629346365,0.02826,118470.0,118460.0,1.15141557]
[1753629346585,0.0051,118470.0,118460.0,1.18488067]
[1753629346810,0.0051,118470.0,118460.0,1.20987067]
[1753629347237,0.00214,118470.0,118460.0,1.20987067]
[1753629348093,0.00214,118470.0,118460.0,1.21192067]
[1753629352637,0.02826,118470.0,118460.0,1.15298067]
[1753629353580,0.02826,118470.0,118460.0,1.02322067]
[1753629353821,0.03246,118470.0,118460.0,0.33089417]
[1753629354081,0.23554156,118470.0,118460.0,0.20223806]
[1753629354351,0.54509705,118470.0,118460.0,0.0334047]
[1753629354594,0.54509705,118470.0,118460.0,0.0318396]
[1753629354797,0.54509705,118470.0,118460.0,0.0334047]
[1753629355029,0.54509705,118470.0,118460.0,0.0055651]
[1753629355481,0.54509705,118470.0,118460.0,0.0065651]
[1753629355994,0.54509705,118470.0,118460.0,0.0055651]
[1753629356871,0.54509705,118470.0,118460.0,0.0015651]
[1753629357965,0.19885728,118460.0,118450.0,0.1703999]
[1753629358183,0.22719728,118460.0,118450.0,0.29133371]
[1753629358420,0.21875626,118460.0,118450.0,0.0628348]
[1753629358650,0.53675134,118460.0,118450.0,0.0015651]
[1753629358883,0.21031502,118460.0,118450.0,0.0015651]
[1753629359094,0.61031502,118460.0,118450.0,0.17041271]
[1753629359302,0.18198999,118450.0,118440.0,0.3001622]
[1753629359515,0.21032999,118450.0,118440.0,0.25322401]
[1753629359750,0.21032999,118450.0,118440.0,0.25165891]
[1753629359995,0.21032999,118450.0,118440.0,0.25322401]
[1753629360435,0.21877194,118450.0,118440.0,0.25322401]
[1753629360865,0.2272141,118450.0,118440.0,0.25322401]
[1753629362014,0.2272141,118450.0,118440.0,0.25522401]
[1753629363327,0.2272141,118450.0,118440.0,0.27996164]
[1753629363561,0.21032999,118450.0,118440.0,0.27996164]
[1753629363799,0.21032999,118450.0,118440.0,0.02830273]
[1753629364016,0.21032999,118450.0,118440.0,0.02673763]
[1753629364229,0.21032999,118450.0,118440.0,0.1971646]
[1753629365647,0.2102308,118450.0,118440.0,0.02812257]
[1753629365916,0.2102308,118450.0,118440.0,0.23124593]
[1753629366597,0.20178842,118450.0,118440.0,0.00338494]
[1753629367829,0.20178842,118450.0,118440.0,0.17224681]
[1753629368054,0.20178842,118450.0,118440.0,0.00338494]
[1753629368265,0.20178842,118450.0,118440.0,0.17142697]
[1753629368486,0.20178842,118450.0,118440.0,0.0025651]
[1753629369663,0.20178842,118450.0,118440.0,0.17142697]
[1753629369928,0.20178842,118450.0,118440.0,0.17042697]
[1753629370195,0.20178842,118450.0,118440.0,0.0015651]
[1753629371187,0.20178842,118450.0,118440.0,0.17042697]
[1753629371835,0.20128842,118450.0,118440.0,0.17042697]
[1753629374244,0.19718761,118450.0,118440.0,0.17042697]
[1753629376488,0.17402761,118450.0,118440.0,0.17042697]
[1753629376759,0.17402761,118450.0,118440.0,0.19323697]
[1753629377209,0.53820166,118460.0,118450.0,0.17041271]
[1753629377437,0.93626799,118460.0,118450.0,0.20417271]
[1753629377664,0.41899226,118460.0,118450.0,0.56511133]
[1753629377882,0.4,118460.0,118450.0,0.58199558]
[1753629378100,0.19418127,118470.0,118460.0,0.20209846]
[1753629378314,0.19629127,118470.0,118460.0,0.21270012]
[1753629378529,0.59629127,118470.0,118460.0,0.36852012]
[1753629378739,0.41903119,118470.0,118460.0,0.36852012]
[1753629378974,0.41692119,118470.0,118460.0,0.38540302]
[1753629379197,0.425362,118470.0,118460.0,0.38540309]
[1753629379447,0.59629154,118470.0,118460.0,0.34477846]
[1753629379699,0.41903148,118470.0,118460.0,0.36852012]
[1753629379914,0.42747186,118470.0,118460.0,0.37696171]
[1753629380185,4e-05,118470.0,118460.0,0.45991038]
[1753629380416,4e-05,118470.0,118460.0,0.87926516]
[1753629380658,4e-05,118470.0,118460.0,0.89671418]
[1753629382660,4e-05,118470.0,118460.0,1.23671418]
[1753629385207,4e-05,118470.0,118460.0,1.28841418]
[1753629385430,4e-05,118470.0,118460.0,1.23771418]
[1753629385631,4e-05,118470.0,118460.0,1.23871418]
[1753629388079,4e-05,118470.0,118460.0,1.23127418]
[1753629397533,4e-05,118470.0,118460.0,0.90483786]
[1753629397769,0.01349031,118470.0,118460.0,0.41221884]
[1753629398001,0.23923215,118470.0,118460.0,0.25687576]
[1753629398279,0.23923215,118470.0,118460.0,0.1333251]
[1753629398280,0.54034719,118470.0,118460.0,0.1333251]
[1753629398506,0.21391087,118470.0,118460.0,0.31904157]
[1753629398767,0.21391087,118470.0,118460.0,0.31904164]
[1753629398994,0.21391087,118470.0,118460.0,0.32748309]
[1753629399459,0.21391087,118470.0,118460.0,0.33592447]
[1753629400162,0.0450914,118470.0,118460.0,0.34436521]
[1753629400394,0.0450914,118470.0,118460.0,0.42040135]
[1753629400616,0.05353228,118470.0,118460.0,0.41196011]
[1753629400848,0.05353228,118470.0,118460.0,0.33592412]
[1753629401342,0.05353228,118470.0,118460.0,0.34436536]
[1753629401566,0.0450914,118470.0,118460.0,0.33592384]
[1753629401797,0.0450914,118470.0,118460.0,0.344365]
[1753629402014,0.0450914,118470.0,118460.0,0.33592384]
[1753629402458,0.0450914,118470.0,118460.0,0.42040114]
[1753629402701,0.0450914,118470.0,118460.0,0.40351859]
[1753629402924,0.0450914,118470.0,118460.0,0.42040106]
[1753629403149,0.05353228,118470.0,118460.0,0.4119599]
[1753629403408,0.05353228,118470.0,118460.0,0.40351859]
[1753629403632,0.22235139,118470.0,118460.0,0.39507742]
[1753629403857,0.23079234,118470.0,118460.0,0.40351901]
[1753629404078,0.23079234,118470.0,118460.0,0.42040191]
[1753629405187,0.00209,118470.0,118460.0,0.8652756]
[1753629405421,4e-05,118470.0,118460.0,0.9167355]
[1753629407020,4e-05,118470.0,118460.0,0.94209932]
[1753629409036,4e-05,118470.0,118460.0,0.81233932]
[1753629409238,4e-05,118470.0,118460.0,0.94205932]
[1753629410770,4e-05,118470.0,118460.0,0.81233932]
[1753629410988,4e-05,118470.0,118460.0,0.94205932]
[1753629412305,4e-05,118470.0,118460.0,1.28205932]
[1753629413155,4e-05,118470.0,118460.0,1.28005932]
[1753629413373,4e-05,118470.0,118460.0,1.61049564]
[1753629414066,4e-05,118470.0,118460.0,2.69387864]
[1753629414324,4e-05,118470.0,118460.0,2.74457864]
[1753629415599,4e-05,118470.0,118460.0,2.41814232]
[1753629416027,4e-05,118470.0,118460.0,2.16499332]
[1753629418276,4e-05,118470.0,118460.0,2.16749332]
[1753629419449,4e-05,118470.0,118460.0,2.49392964]
[1753629420139,4e-05,118470.0,118460.0,1.33725932]
[1753629420352,4e-05,118470.0,118460.0,3.75682332]
[1753629420561,4e-05,118470.0,118460.0,3.27242532]
[1753629420792,4e-05,118470.0,118460.0,1.61299564]
[1753629420977,4e-05,118470.0,118460.0,3.67349564]
[1753629421279,4e-05,118470.0,118460.0,4.92228664]
[1753629421935,4e-05,118470.0,118460.0,4.92028664]
[1753629422164,4e-05,118470.0,118460.0,4.38753164]
[1753629422410,4e-05,118470.0,118460.0,3.61006064]
[1753629422845,4e-05,118470.0,118460.0,3.60606064]
[1753629423055,4e-05,118470.0,118460.0,2.18406664]
[1753629423266,4e-05,118470.0,118460.0,2.13971864]
[1753629423516,4e-05,118470.0,118460.0,2.11250364]
[1753629423954,4e-05,118470.0,118460.0,2.09283664]
[1753629424152,4e-05,118470.0,118460.0,2.39740764]
[1753629424420,4e-05,118470.0,118460.0,1.398813]
[1753629424642,4e-05,118470.0,118460.0,1.72524932]
[1753629425186,4e-05,118470.0,118460.0,2.12221732]
[1753629425397,4e-05,118470.0,118460.0,2.10081732]
[1753629425874,4e-05,118470.0,118460.0,2.42725364]
[1753629426076,4e-05,118470.0,118460.0,2.37050764]
[1753629426294,4e-05,118470.0,118460.0,2.06600764]
[1753629427241,4e-05,118470.0,118460.0,2.40302964]
[1753629427644,4e-05,118470.0,118460.0,2.37002764]
[1753629428457,4e-05,118470.0,118460.0,2.24841764]
[1753629429015,4e-05,118470.0,118460.0,2.11733264]
[1753629429238,0.02570889,118530.0,118520.0,0.17875024]
[1753629429458,0.02570889,118530.0,118520.0,0.66411055]
[1753629429459,0.04045095,118530.0,118520.0,0.66411055]
[1753629429699,0.03302538,118530.0,118520.0,0.68098483]
[1753629429938,0.04146142,118530.0,118520.0,0.68942172]
[1753629430204,0.0498976,118530.0,118520.0,0.68942172]
[1753629430441,0.04146142,118530.0,118520.0,0.68942172]
[1753629430668,0.0626701,118530.0,118520.0,0.79106111]
[1753629431388,0.0626701,118530.0,118520.0,0.79106119]
[1753629431598,0.0626701,118530.0,118520.0,0.79949829]
[1753629431834,0.06267003,118530.0,118520.0,0.80793532]
[1753629432079,0.06267003,118530.0,118520.0,0.79949829]
[1753629432322,0.07110649,118530.0,118520.0,0.79949829]
[1753629432532,0.06267003,118530.0,118520.0,0.79949829]
[1753629432750,0.06267003,118530.0,118520.0,0.80793532]
[1753629432887,0.07110649,118530.0,118520.0,0.79106119]
[1753629433311,0.07110642,118530.0,118520.0,0.80793532]
[1753629433641,0.07110642,118530.0,118520.0,0.79106119]
[1753629433642,0.07110692,118530.0,118520.0,0.79106119]
[1753629433848,0.06267038,118530.0,118520.0,0.79949829]
[1753629435279,0.23984057,118530.0,118520.0,0.77418676]
[1753629435503,0.07110742,118530.0,118520.0,0.79106133]
[1753629435714,0.06267081,118530.0,118520.0,0.79949851]
[1753629436129,0.07110742,118530.0,118520.0,0.46462501]
[1753629436573,0.06267081,118530.0,118520.0,0.46462515]
[1753629437252,0.06267081,118530.0,118520.0,0.4730624]
[1753629437479,0.04579788,118530.0,118520.0,0.4814995]
[1753629438140,0.04579788,118530.0,118520.0,0.48993646]
[1753629438323,0.04579788,118530.0,118520.0,0.48993653]
[1753629438574,0.04579788,118530.0,118520.0,0.4730624]
[1753629438787,0.05423434,118530.0,118520.0,0.4730624]
[1753629439402,0.04579788,118530.0,118520.0,0.48149958]
[1753629439653,0.05423427,118530.0,118520.0,0.48993668]
[1753629440484,0.05423427,118530.0,118520.0,0.48149958]
[1753629440706,0.06267081,118530.0,118520.0,0.4730624]
[1753629440939,0.06267081,118530.0,118520.0,0.48149958]
[1753629441150,0.06267081,118530.0,118520.0,0.4730624]
[1753629441372,0.05423427,118530.0,118520.0,0.4730624]
[1753629441592,0.05423427,118530.0,118520.0,0.48149958]
[1753629442015,0.05423427,118530.0,118520.0,0.48993668]
[1753629442465,0.05423427,118530.0,118520.0,0.48149958]
[1753629442466,0.06267073,118530.0,118520.0,0.48149958]
[1753629442694,0.06267073,118530.0,118520.0,0.4730624]
[1753629442910,0.05423427,118530.0,118520.0,0.48149958]
[1753629443124,0.05423427,118530.0,118520.0,0.48993668]
[1753629443546,0.06267088,118530.0,118520.0,0.4730624]
[1753629443756,0.06267081,118530.0,118520.0,0.46462508]
[1753629443969,0.04579788,118530.0,118520.0,0.48149921]
[1753629444250,0.04579788,118530.0,118520.0,0.47306218]
[1753629444457,0.03107427,118530.0,118520.0,0.49655218]
[1753629444671,0.0309899,118530.0,118520.0,0.49655226]
[1753629444899,0.02255351,118530.0,118520.0,0.49655226]
[1753629445333,0.03098997,118530.0,118520.0,0.50498936]
[1753629445550,0.02255351,118530.0,118520.0,0.52018936]
[1753629445995,0.0309899,118530.0,118520.0,0.52018936]
[1753629446244,0.0309899,118530.0,118520.0,0.50331508]
[1753629446768,0.19972355,118530.0,118520.0,0.48644044]
[1753629446997,0.06258644,118530.0,118520.0,0.47124044]
[1753629447225,0.06258644,118530.0,118520.0,0.45618776]
[1753629447459,0.06258644,118530.0,118520.0,0.46462501]
[1753629448215,0.06258644,118530.0,118520.0,0.44775044]
[1753629448429,0.23132059,118530.0,118520.0,0.44775044]
[1753629448629,0.23132059,118530.0,118520.0,0.45618783]
[1753629448850,0.23132059,118530.0,118520.0,0.44775044]
[1753629449068,0.22288434,118530.0,118520.0,0.44775044]
[1753629451005,0.22698434,118530.0,118520.0,0.44775044]
[1753629451455,0.22288434,118530.0,118520.0,0.44775044]
[1753629451962,0.22288434,118530.0,118520.0,0.45618783]
[1753629452190,0.22288434,118530.0,118520.0,0.44775044]
[1753629453238,0.62288434,118530.0,118520.0,0.44775044]
[1753629455017,0.62288434,118530.0,118520.0,0.45618783]
[1753629455265,0.62288434,118530.0,118520.0,0.44775044]
[1753629455509,0.62288434,118530.0,118520.0,0.45618783]
[1753629455927,0.62288434,118530.0,118520.0,0.44775044]
[1753629456161,0.62288434,118530.0,118520.0,0.45618783]
[1753629456438,0.62288434,118530.0,118520.0,0.44775044]
[1753629456560,0.62288434,118530.0,118520.0,0.47038044]
[1753629456764,0.62288434,118530.0,118520.0,0.50228044]
[1753629457009,0.59972434,118530.0,118520.0,0.51071783]
[1753629457219,0.59972434,118530.0,118520.0,0.50228044]
[1753629457434,0.59972434,118530.0,118520.0,0.51071783]
[1753629457870,0.42255401,118530.0,118520.0,0.51071783]
[1753629458095,0.41939401,118530.0,118520.0,0.51915508]
[1753629458336,0.41939401,118530.0,118520.0,0.51915515]
[1753629458554,0.58812766,118530.0,118520.0,0.50228044]
[1753629458998,0.59656434,118530.0,118520.0,0.50228044]
[1753629459726,0.41939401,118530.0,118520.0,0.51915515]
[1753629459728,0.42783062,118530.0,118520.0,0.51915515]